bitfinex/quotes_BTCUSD_20220211
["timestamp","ask_amount","ask_price","bid_price","bid_amount"]
[1644579798083,0.05,43506.0,43493.0,0.31608972]
[1644579798084,0.32276,43505.0,43500.0,0.05]
[1644579798284,0.322157,43503.0,43500.0,0.05]
[1644579798485,0.379659,43503.0,43501.0,0.08774193]
[1644579798784,0.379659,43503.0,43501.0,0.08796025]
[1644579799186,0.379657,43503.0,43501.0,0.08796025]
[1644579799387,0.322157,43502.0,43501.0,0.40965808]
[1644579799590,0.372157,43502.0,43501.0,0.40965808]
[1644579800188,0.322157,43502.0,43501.0,0.40965808]
[1644579800395,0.115001,43503.0,43502.0,0.323278]
[1644579800396,0.0575,43503.0,43502.0,0.323278]
[1644579800596,0.96521189,43515.0,43502.0,0.31642343]
[1644579800791,0.0027178,43514.0,43502.0,0.31642343]
[1644579800990,0.322157,43510.0,43509.0,0.05]
[1644579801432,0.322157,43510.0,43503.0,0.00021832]
[1644579801433,0.437144,43510.0,43504.0,0.05]
[1644579801630,0.114987,43510.0,43504.0,0.05]
[1644579801830,0.379651,43509.0,43502.0,0.33766463]
[1644579802029,0.057494,43509.0,43504.0,0.05]
[1644579802230,0.057494,43509.0,43508.0,0.05]
[1644579802430,0.114987,43509.0,43503.0,0.05021832]
[1644579802628,0.114987,43509.0,43503.0,0.05]
[1644579802633,0.322157,43508.0,43503.0,0.05]
[1644579802828,0.322157,43506.0,43503.0,0.05]
[1644579803032,0.0575,43506.0,43502.0,0.00021832]
[1644579803227,0.28308985,43506.0,43501.0,0.40965808]
[1644579803431,0.322157,43504.0,43501.0,0.08796025]
[1644579804631,0.322157,43504.0,43503.0,0.28732124]
[1644579804833,0.379657,43504.0,43503.0,0.28732124]
[1644579805079,0.379657,43504.0,43503.0,0.28753956]
[1644579806383,0.379657,43504.0,43503.0,0.00021832]
[1644579806584,0.322157,43503.0,43502.0,0.05021832]
[1644579807685,0.322157,43503.0,43502.0,0.00021832]
[1644579807885,0.322157,43503.0,43501.0,0.08774193]
[1644579808485,0.379659,43503.0,43501.0,0.08774193]
[1644579809527,0.26971347,43502.0,43501.0,0.08774193]
[1644579809727,0.85352306,43502.0,43501.0,0.08774193]
[1644579810528,0.59187047,43502.0,43499.0,0.00061048]
[1644579810730,0.322157,43501.0,43499.0,0.00061048]
[1644579810933,0.40589225,43500.0,43499.0,0.00061048]
[1644579811129,0.82964925,43500.0,43499.0,0.00045708]
[1644579811530,1.11020635,43500.0,43492.0,0.00021832]
[1644579811727,0.40064281,43498.0,43493.0,0.07926955]
[1644579812028,0.379677,43496.0,43493.0,0.07926955]
[1644579812230,0.43719582,43496.0,43493.0,0.07926955]
[1644579812427,0.322157,43495.0,43493.0,0.07926955]
[1644579812882,0.322157,43494.0,43493.0,0.07926955]
[1644579815181,0.322157,43494.0,43493.0,0.12926955]
[1644579815986,0.322157,43494.0,43493.0,0.07926955]
[1644579816184,0.322157,43494.0,43493.0,0.12926955]
[1644579816839,0.322157,43498.0,43493.0,0.12926955]
[1644579817035,0.115017,43501.0,43493.0,0.12926955]
[1644579817235,0.322157,43500.0,43493.0,0.07926955]
[1644579817437,0.322157,43498.0,43493.0,0.07926955]
[1644579817635,0.26749592,43499.0,43495.0,0.00071555]
[1644579817836,0.17307297,43499.0,43495.0,0.00071555]
[1644579818036,0.057507,43498.0,43495.0,0.00071555]
[1644579818640,0.057507,43498.0,43494.0,0.00021832]
[1644579818837,0.057507,43498.0,43494.0,0.00071555]
[1644579819036,0.057507,43498.0,43494.0,0.00093387]
[1644579819238,0.057514,43497.0,43494.0,0.00093387]
[1644579819837,0.057514,43497.0,43494.0,0.00021832]
[1644579820084,0.057513,43496.0,43493.0,0.0799851]
[1644579820284,0.107513,43496.0,43493.0,0.0799851]
[1644579820984,0.107513,43496.0,43493.0,0.07926955]
[1644579821390,0.107513,43496.0,43493.0,0.07948787]
[1644579821685,0.057513,43496.0,43493.0,0.07948787]
[1644579822486,0.057513,43496.0,43493.0,0.07926955]
[1644579822787,0.057513,43496.0,43493.0,0.07948787]
[1644579823584,0.057513,43495.0,43493.0,0.07926955]
[1644579823835,0.165026,43495.0,43493.0,0.07948787]
[1644579824032,0.49060248,43494.0,43493.0,0.07948787]
[1644579824238,0.53811722,43494.0,43493.0,0.07948787]
[1644579824434,0.53811722,43494.0,43493.0,0.00021832]
[1644579824637,0.53811722,43494.0,43492.0,0.00021832]
[1644579824832,0.38613007,43493.0,43492.0,0.00021832]
[1644579825232,0.33386347,43494.0,43491.0,0.01059459]
[1644579825433,0.057523,43493.0,43491.0,0.01059459]
[1644579825835,0.057523,43493.0,43491.0,0.01]
[1644579826235,0.115042,43493.0,43491.0,0.01021832]
[1644579826636,0.26371746,43492.0,43491.0,0.01021832]
[1644579827034,0.46816558,43492.0,43491.0,0.01021832]
[1644579827234,0.46816558,43492.0,43491.0,0.01]
[1644579828878,0.20444812,43492.0,43491.0,0.01]
[1644579829682,0.25444812,43492.0,43491.0,0.01]
[1644579829981,0.30604812,43492.0,43491.0,0.01]
[1644579830781,0.62411619,43492.0,43491.0,0.01]
[1644579830982,0.62411619,43492.0,43491.0,0.01021832]
[1644579831343,0.62411619,43492.0,43491.0,0.01]
[1644579831746,0.30604812,43492.0,43491.0,0.01]
[1644579832748,0.75604812,43492.0,43491.0,0.01]
[1644579832945,0.79914718,43492.0,43491.0,0.01]
[1644579833146,0.86037997,43492.0,43491.0,0.00749056]
[1644579833343,0.51728091,43492.0,43491.0,0.00749056]
[1644579833545,1.1472102,43492.0,43491.0,0.00749056]
[1644579833744,0.80407902,43492.0,43491.0,0.00749056]
[1644579834143,1.1472102,43492.0,43491.0,0.00749056]
[1644579834546,1.07992266,43491.0,43489.0,0.00071406]
[1644579834747,0.40741597,43490.0,43489.0,0.00071406]
[1644579834946,0.70142111,43490.0,43489.0,0.00071406]
[1644579835184,0.55741597,43490.0,43489.0,0.00071406]
[1644579835386,0.55741597,43490.0,43486.0,0.00021832]
[1644579835584,0.33280558,43488.0,43487.0,0.00071407]
[1644579835786,0.52162463,43488.0,43487.0,0.00071407]
[1644579836584,0.52162463,43488.0,43486.0,0.00021832]
[1644579836785,0.52162463,43488.0,43485.0,0.05071408]
[1644579836987,0.52162463,43488.0,43486.0,0.00021832]
[1644579837186,0.057531,43486.0,43485.0,0.05071408]
[1644579837384,0.37268111,43486.0,43485.0,0.05071408]
[1644579837784,0.37268111,43486.0,43485.0,0.05]
[1644579839030,0.109131,43486.0,43485.0,0.05]
[1644579840031,0.37012789,43486.0,43485.0,0.05]
[1644579840233,0.109131,43486.0,43485.0,0.05]
[1644579842695,0.20444812,43492.0,43485.0,0.05]
[1644579842696,0.057517,43491.0,43485.0,0.05021832]
[1644579842894,0.23030326,43495.0,43490.0,0.05]
[1644579843096,0.03468608,43498.0,43486.0,0.00021832]
[1644579843294,0.03468608,43498.0,43485.0,0.24958589]
[1644579843295,0.03468608,43498.0,43487.0,0.10911]
[1644579843494,0.25722955,43498.0,43494.0,0.07592954]
[1644579843694,0.05751429,43497.0,43494.0,0.07592954]
[1644579843895,0.057516,43496.0,43494.0,0.07592954]
[1644579844900,0.165032,43496.0,43494.0,0.12592954]
[1644579845096,0.165032,43496.0,43494.0,0.07592954]
[1644579845295,0.165032,43496.0,43494.0,0.07614786]
[1644579845502,0.165032,43496.0,43382.0,0.63436618]
[1644579845503,0.165032,43496.0,43482.0,0.1]
[1644579845504,0.057519,43493.0,43482.0,0.1]
[1644579845701,0.22962354,43486.0,43482.0,0.1]
[1644579845998,0.107538,43486.0,43482.0,0.1]
[1644579846434,0.157538,43486.0,43483.0,0.00071441]
[1644579846840,0.05,43486.0,43484.0,0.07737242]
[1644579847837,0.31487547,43486.0,43484.0,0.07737242]
[1644579848237,0.31487547,43486.0,43485.0,0.04500001]
[1644579850886,0.05,43486.0,43485.0,0.04500001]
[1644579851985,0.28,43486.0,43485.0,0.04500001]
[1644579852784,0.54349056,43486.0,43485.0,0.04500001]
[1644579854337,0.28,43486.0,43485.0,0.04500001]
[1644579856742,0.23,43486.0,43485.0,0.04500001]
[1644579858784,0.16505,43490.0,43485.0,0.04500001]
[1644579858984,0.05,43490.0,43485.0,0.04500001]
[1644579859387,0.2,43492.0,43485.0,0.04500001]
[1644579859585,0.2,43492.0,43485.0,0.04571441]
[1644579860186,0.057523,43490.0,43485.0,0.04571441]
[1644579860387,0.25752,43492.0,43485.0,0.04571441]
[1644579860585,0.25752,43492.0,43485.0,0.04500001]
[1644579860786,0.25752,43492.0,43485.0,0.04571441]
[1644579860986,0.25752,43492.0,43485.0,0.0459326]
[1644579861733,0.057522,43490.0,43485.0,0.0459326]
[1644579861932,0.057522,43490.0,43485.0,0.0452182]
[1644579862136,0.107522,43490.0,43486.0,0.0007144]
[1644579862332,0.107522,43490.0,43486.0,0.00093259]
[1644579862532,0.057527,43488.0,43486.0,0.00093259]
[1644579862735,0.057527,43487.0,43486.0,0.00093259]
[1644579863135,0.057527,43487.0,43486.0,0.00021819]
[1644579863336,0.057527,43487.0,43485.0,0.0452182]
[1644579863939,0.26727053,43486.0,43485.0,0.0452182]
[1644579865784,0.49727053,43486.0,43485.0,0.0452182]
[1644579867788,0.54727053,43486.0,43485.0,0.0452182]
[1644579868189,0.54727053,43486.0,43485.0,0.02015498]
[1644579869838,0.49727053,43486.0,43485.0,0.02015498]
[1644579870738,0.23,43486.0,43485.0,0.02015498]
[1644579870937,0.22972326,43486.0,43485.0,0.02015498]
[1644579872782,0.27972326,43486.0,43485.0,0.02015498]
[1644579876945,0.27972326,43486.0,43485.0,0.01993679]
[1644579877947,0.57367519,43486.0,43485.0,0.01993679]
[1644579878146,0.27972326,43486.0,43485.0,0.01993679]
[1644579878646,0.27912324,43486.0,43485.0,0.01993679]
[1644579879446,0.27912324,43486.0,43485.0,0.02015498]
[1644579879646,0.22972326,43486.0,43485.0,0.02015498]
[1644579879847,0.22972326,43486.0,43485.0,0.01993679]
[1644579880092,0.52367519,43486.0,43485.0,0.01993679]
[1644579880288,0.22972326,43486.0,43485.0,0.01993679]
[1644579880689,0.52367519,43486.0,43485.0,0.10750464]
[1644579880888,0.22972326,43486.0,43485.0,0.10750464]
[1644579882390,0.22972326,43486.0,43485.0,0.36315695]
[1644579882602,0.22972326,43486.0,43485.0,0.36337514]
[1644579883952,0.22972326,43486.0,43485.0,0.70021212]
[1644579884852,0.22962326,43486.0,43485.0,0.69999393]
[1644579887057,0.22962326,43486.0,43485.0,0.98258285]
[1644579887690,0.22852326,43486.0,43485.0,1.30589085]
[1644579887889,0.15050551,43498.0,43486.0,0.9]
[1644579887890,0.29395193,43495.0,43486.0,0.9]
[1644579888094,0.29455691,43499.0,43494.0,0.1]
[1644579888290,0.15050551,43503.0,43498.0,0.05]
[1644579888291,0.29455691,43502.0,43498.0,0.05]
[1644579888490,0.34294392,43505.0,43501.0,0.05]
[1644579888690,0.34294392,43506.0,43501.0,0.05]
[1644579888890,0.34294392,43506.0,43504.0,0.35970832]
[1644579889091,0.34294392,43507.0,43504.0,0.35970832]
[1644579889289,0.34294392,43508.0,43504.0,0.35970832]
[1644579889892,0.34294392,43507.0,43504.0,0.35970832]
[1644579890292,0.40044292,43508.0,43502.0,0.07879882]
[1644579890691,0.53563184,43505.0,43502.0,0.07879882]
[1644579890892,0.53563184,43505.0,43501.0,0.05]
[1644579890893,0.29451153,43504.0,43501.0,0.05]
[1644579891091,0.29451153,43504.0,43499.0,0.05]
[1644579891350,0.35201753,43503.0,43499.0,0.05]
[1644579891548,0.057506,43503.0,43499.0,0.05]
[1644579891742,0.29451153,43504.0,43499.0,0.05]
[1644579891941,0.29451153,43504.0,43500.0,0.08378469]
[1644579892443,0.29451153,43503.0,43500.0,0.08378469]
[1644579893244,0.35201753,43503.0,43500.0,0.08378469]
[1644579893444,0.29451153,43503.0,43502.0,0.05]
[1644579893646,0.29451153,43506.0,43502.0,0.05]
[1644579893945,0.35201253,43507.0,43501.0,0.05]
[1644579894147,0.05750244,43506.0,43501.0,0.05]
[1644579894347,0.61331703,43505.0,43501.0,0.05]
[1644579894545,0.29451153,43504.0,43501.0,0.05]
[1644579894746,0.29451153,43503.0,43501.0,0.05]
[1644579894945,0.2613025,43505.0,43501.0,0.05]
[1644579894946,0.29451153,43504.0,43501.0,0.05]
[1644579895398,2.46137981,43502.0,43498.0,0.05]
[1644579895602,2.51888681,43502.0,43498.0,0.05]
[1644579897100,2.51888681,43502.0,43497.0,0.00071467]
[1644579897101,0.28650305,43498.0,43497.0,0.00071467]
[1644579897301,0.62558619,43498.0,43497.0,0.00071467]
[1644579897697,0.67158619,43498.0,43497.0,0.00071467]
[1644579897898,0.057525,43495.0,43487.0,0.05]
[1644579898201,0.26213869,43491.0,43487.0,0.05]
[1644579898499,0.26213869,43491.0,43485.0,0.01993679]
[1644579898500,0.057526,43491.0,43485.0,0.01993679]
[1644579899141,0.115053,43491.0,43485.0,0.01993679]
[1644579899344,0.115053,43491.0,43486.0,0.00071472]
[1644579899545,0.11489708,43491.0,43486.0,0.00071472]
[1644579900243,0.34489708,43491.0,43485.0,0.01993679]
[1644579900444,0.23,43491.0,43486.0,0.00071471]
[1644579900843,0.23,43491.0,43486.0,0.05071471]
[1644579901445,0.23,43491.0,43486.0,0.05]
[1644579901644,0.23,43491.0,43486.0,0.05071471]
[1644579901849,0.287519,43491.0,43486.0,0.05071471]
[1644579902247,0.345039,43491.0,43486.0,0.05071471]
[1644579902445,0.23,43491.0,43486.0,0.05071471]
[1644579902698,0.23,43491.0,43486.0,0.05]
[1644579902898,0.23,43491.0,43486.0,0.05071471]
[1644579903999,0.23,43491.0,43486.0,0.05]
[1644579904201,0.23,43491.0,43486.0,0.05071471]
[1644579904801,0.28752,43491.0,43486.0,0.05071471]
[1644579905199,0.28752,43491.0,43486.0,0.05]
[1644579905399,0.28752,43491.0,43486.0,0.05071471]
[1644579906002,0.345041,43491.0,43486.0,0.05071471]
[1644579906199,0.28752,43491.0,43486.0,0.05071471]
[1644579906440,0.23,43491.0,43486.0,0.05071471]
[1644579907445,0.23,43491.0,43486.0,0.05]
[1644579907646,0.23,43491.0,43486.0,0.05071471]
[1644579907846,0.337519,43491.0,43486.0,0.05071471]
[1644579908246,0.395039,43491.0,43486.0,0.05071471]
[1644579908646,0.345039,43491.0,43486.0,0.05]
[1644579909047,0.345039,43491.0,43486.0,0.05071471]
[1644579909247,0.345039,43491.0,43488.0,0.14343932]
[1644579910693,0.28724223,43491.0,43488.0,0.14343932]
[1644579910892,0.23,43491.0,43490.0,0.05]
[1644579911300,0.1211,43501.0,43490.0,0.05]
[1644579911495,0.1211,43501.0,43488.0,0.14343932]
[1644579911693,0.1211,43501.0,43496.0,0.07780351]
[1644579911892,0.057506,43502.0,43496.0,0.07780351]
[1644579912092,0.32209707,43501.0,43496.0,0.07780351]
[1644579912494,0.32209707,43501.0,43497.0,0.00071466]
[1644579912995,0.05751,43500.0,43497.0,0.00071466]
[1644579913194,0.10751,43500.0,43497.0,0.00071466]
[1644579913394,0.057511,43499.0,43497.0,0.00071466]
[1644579913596,0.057511,43499.0,43496.0,0.07780351]
[1644579913841,0.057511,43499.0,43496.0,0.07851817]
[1644579914342,0.00160223,43500.0,43496.0,0.07851817]
[1644579914544,0.05911023,43500.0,43498.0,0.07171966]
[1644579914744,0.05911023,43500.0,43498.0,0.14343932]
[1644579914946,0.11661823,43500.0,43498.0,0.14343932]
[1644579915143,0.11652637,43500.0,43498.0,0.14343932]
[1644579918793,0.05901837,43500.0,43498.0,0.14343932]
[1644579918996,0.00160223,43500.0,43499.0,0.05]
[1644579919196,0.00160223,43500.0,43499.0,0.373308]
[1644579919396,0.00160223,43500.0,43499.0,0.6904042]
[1644579919595,0.00160223,43500.0,43499.0,0.7864042]
[1644579919899,0.00160223,43500.0,43499.0,0.92984352]
[1644579920098,0.00160223,43500.0,43499.0,0.99481852]
[1644579920293,0.00160223,43500.0,43499.0,1.04481852]
[1644579920494,0.00160223,43500.0,43499.0,1.10887385]
[1644579921342,0.00160223,43500.0,43499.0,0.78521803]
[1644579921742,0.00160223,43500.0,43499.0,0.83521803]
[1644579922142,0.00160223,43500.0,43499.0,0.78521803]
[1644579923343,0.23160223,43500.0,43499.0,0.78521803]
[1644579925794,0.23160223,43500.0,43499.0,0.67024303]
[1644579925996,0.23160223,43500.0,43499.0,0.56274732]
[1644579926194,0.23160223,43500.0,43499.0,0.23943932]
[1644579926596,0.23160223,43500.0,43499.0,0.19343932]
[1644579929847,0.23114445,43500.0,43499.0,0.19343932]
[1644579931949,0.23114445,43500.0,43499.0,0.51674732]
[1644579932894,0.23114445,43500.0,43499.0,0.5742438]
[1644579935999,0.23114445,43500.0,43499.0,0.8631424]
[1644579937248,0.23114445,43500.0,43499.0,0.9131424]
[1644579937447,0.23114445,43500.0,43499.0,1.0131424]
[1644579937947,0.23114445,43500.0,43499.0,0.7242438]
[1644579940495,0.14724299,43500.0,43499.0,0.7242438]
[1644579941393,0.057492,43508.0,43503.0,0.05749138]
[1644579941693,0.17273436,43513.0,43504.0,0.07566479]
[1644579941893,0.057491,43512.0,43507.0,0.14343932]
[1644579942095,0.057489,43511.0,43507.0,0.14343932]
[1644579942293,0.057489,43511.0,43509.0,0.37810255]
[1644579942896,0.00026136,43512.0,43510.0,0.05]
[1644579943097,0.00026136,43513.0,43510.0,0.05]
[1644579943295,0.34345986,43517.0,43510.0,0.05]
[1644579943296,0.00026136,43515.0,43510.0,0.05]
[1644579943600,0.00026136,43516.0,43513.0,0.05]
[1644579944245,0.00026136,43517.0,43513.0,0.10747739]
[1644579944445,0.00026136,43516.0,43513.0,0.10747739]
[1644579944645,0.05774136,43517.0,43514.0,0.08878689]
[1644579944846,0.00026136,43516.0,43514.0,0.08878689]
[1644579945048,0.05748,43517.0,43515.0,0.323308]
[1644579945049,0.00026136,43517.0,43515.0,0.323308]
[1644579945246,0.06978167,43522.0,43514.0,0.08878689]
[1644579945247,0.00026136,43516.0,43514.0,0.08878689]
[1644579945446,0.00026136,43519.0,43515.0,0.43078246]
[1644579945648,0.057474,43520.0,43515.0,0.10747446]
[1644579945947,0.057474,43520.0,43518.0,0.05]
[1644579945948,0.05773536,43520.0,43518.0,0.05]
[1644579946150,0.05773536,43520.0,43514.0,0.14626189]
[1644579946151,0.18,43516.0,43514.0,0.08878689]
[1644579946346,0.18,43516.0,43515.0,0.323308]
[1644579947149,0.18,43516.0,43515.0,0.380781]
[1644579947348,0.00026136,43517.0,43515.0,0.50997558]
[1644579947602,0.30070609,43521.0,43515.0,0.25838724]
[1644579947603,0.00026136,43520.0,43515.0,0.25838724]
[1644579947797,0.057477,43520.0,43515.0,0.14343932]
[1644579947997,0.11521936,43520.0,43515.0,0.14343932]
[1644579948397,0.45867922,43520.0,43515.0,0.14343932]
[1644579948798,0.05,43519.0,43515.0,0.14343932]
[1644579948998,0.05026136,43519.0,43515.0,0.14343932]
[1644579949197,0.10774436,43519.0,43515.0,0.14343932]
[1644579949401,0.05026136,43519.0,43515.0,0.14343932]
[1644579949598,0.05026136,43520.0,43515.0,0.14343932]
[1644579949797,0.24349445,43521.0,43515.0,0.14343932]
[1644579949997,0.00026136,43520.0,43515.0,0.14343932]
[1644579950198,0.24349445,43521.0,43515.0,0.14343932]
[1644579950399,0.00026136,43520.0,43515.0,0.14343932]
[1644579950599,0.34372122,43521.0,43515.0,0.14343932]
[1644579950802,0.00085,43522.0,43515.0,0.20091432]
[1644579950803,0.00026136,43520.0,43515.0,0.20091432]
[1644579951001,0.34430986,43522.0,43515.0,0.20091432]
[1644579951002,0.00026136,43521.0,43515.0,0.20091432]
[1644579951201,0.34430986,43522.0,43515.0,0.20091432]
[1644579951455,0.00026136,43521.0,43515.0,0.20091432]
[1644579951646,0.00085,43522.0,43515.0,0.20091432]
[1644579951848,0.34457122,43522.0,43515.0,0.20091432]
[1644579952046,0.34430986,43522.0,43515.0,0.20091432]
[1644579952448,0.34430986,43522.0,43515.0,0.12919466]
[1644579952646,0.34430986,43522.0,43515.0,0.057475]
[1644579952847,0.34430986,43522.0,43518.0,0.14343932]
[1644579955401,0.34345986,43521.0,43518.0,0.14343932]
[1644579955598,0.34345986,43520.0,43518.0,0.14343932]
[1644579956001,0.32391124,43519.0,43518.0,0.14343932]
[1644579956198,0.32391124,43519.0,43518.0,0.12909539]
[1644579956199,0.72002876,43519.0,43518.0,0.12909539]
[1644579956398,0.77751176,43519.0,43518.0,0.12909539]
[1644579956899,0.77751176,43519.0,43500.0,0.3]
[1644579956900,0.05750286,43509.0,43500.0,0.3]
[1644579957098,0.05750286,43509.0,43502.0,0.33978217]
[1644579957099,0.0515,43508.0,43502.0,0.33978217]
[1644579957299,0.0515,43508.0,43500.0,0.3]
[1644579957597,0.0515,43508.0,43497.0,0.30061002]
[1644579957598,0.0015,43508.0,43497.0,0.30061002]
[1644579957998,0.059003,43508.0,43497.0,0.3]
[1644579958197,0.0575,43506.0,43500.0,0.0763986]
[1644579959246,0.36217179,43508.0,43500.0,0.0763986]
[1644579959247,0.00026136,43508.0,43500.0,0.0763986]
[1644579959445,0.00026136,43509.0,43500.0,0.0763986]
[1644579959644,0.34256327,43512.0,43500.0,0.0763986]
[1644579959843,0.00272408,43514.0,43500.0,0.36925993]
[1644579960244,0.00272408,43514.0,43511.0,0.0864278]
[1644579960445,0.057485,43517.0,43511.0,0.0864278]
[1644579960646,0.114969,43517.0,43516.0,0.29542961]
[1644579960861,0.08202022,43517.0,43516.0,0.29542961]
[1644579961646,0.08202022,43517.0,43511.0,0.0864278]
[1644579961647,0.057486,43516.0,43511.0,0.0864278]
[1644579961848,0.114973,43516.0,43511.0,0.0864278]
[1644579962445,2.09426264,43516.0,43511.0,0.0864278]
[1644579962696,2.09426264,43516.0,43514.0,0.31097954]
[1644579962895,0.107486,43515.0,43514.0,0.31097954]
[1644579965297,0.057486,43514.0,43511.0,0.0864278]
[1644579965696,0.114971,43514.0,43511.0,0.0864278]
[1644579967848,0.34356134,43517.0,43512.0,0.2838983]
[1644579968049,0.34356134,43518.0,43512.0,0.2838983]
[1644579968246,0.34356134,43519.0,43513.0,0.323308]
[1644579968445,0.34356134,43519.0,43512.0,0.3353983]
[1644579968644,0.34356134,43519.0,43513.0,0.323308]
[1644579968845,0.34356134,43520.0,43515.0,0.057473]
[1644579969045,0.34356134,43520.0,43516.0,0.28722539]
[1644579969248,0.12155,43522.0,43516.0,0.28722539]
[1644579969249,0.34441134,43522.0,43516.0,0.28722539]
[1644579969746,0.34441134,43522.0,43516.0,0.33722539]
[1644579970107,0.00085,43522.0,43517.0,0.057467]
[1644579970295,0.00085,43522.0,43518.0,0.07481965]
[1644579971398,0.00085,43522.0,43519.0,0.323308]
[1644579971596,0.00085,43522.0,43519.0,0.28298389]
[1644579971794,0.00085,43522.0,43520.0,0.3538591]
[1644579974845,0.00110989,43522.0,43520.0,0.3538591]
[1644579976047,0.00110989,43522.0,43518.0,0.07481965]
[1644579976248,0.05857989,43522.0,43518.0,0.07481965]
[1644579976448,0.05832,43522.0,43518.0,0.3584134]
[1644579976850,0.05832,43522.0,43519.0,0.057466]
[1644579976851,0.00085,43522.0,43519.0,0.057466]
[1644579977051,0.00085,43522.0,43520.0,0.374808]
[1644579977253,0.00085,43522.0,43521.0,0.30279111]
[1644579977450,0.00068131,43524.0,43522.0,0.85]
[1644579977695,0.00068131,43524.0,43523.0,0.91013315]
[1644579977894,0.00068131,43524.0,43523.0,1.5066293]
[1644579978294,0.00025989,43526.0,43523.0,1.5066293]
[1644579978495,0.001,43527.0,43523.0,1.5066293]
[1644579978696,0.00094122,43526.0,43523.0,1.5066293]
[1644579978894,0.00068133,43526.0,43523.0,1.5066293]
[1644579979094,0.00094122,43526.0,43524.0,0.05745411]
[1644579979295,0.00094122,43526.0,43525.0,0.432265]
[1644579979494,0.00068133,43526.0,43525.0,0.432265]
[1644579979695,0.001,43527.0,43525.0,0.432265]
[1644579979896,0.00168132,43527.0,43525.0,0.432265]
[1644579980496,0.00168132,43527.0,43525.0,0.50645713]
[1644579980696,0.00168132,43527.0,43526.0,0.28848152]
[1644579980899,0.001,43527.0,43526.0,0.66328952]
[1644579981354,0.001,43527.0,43526.0,0.76328952]
[1644579984051,0.001,43527.0,43526.0,0.96328952]
[1644579984250,0.001,43527.0,43526.0,0.76328952]
[1644579984651,0.001,43527.0,43526.0,0.96328952]
[1644579985403,0.001,43533.0,43528.0,0.530755]
[1644579985605,0.001,43533.0,43529.0,0.374808]
[1644579985800,0.001,43533.0,43529.0,0.474808]
[1644579986505,0.001,43533.0,43531.0,0.380751]
[1644579986705,0.001,43533.0,43532.0,0.0515]
[1644579986904,0.001,43533.0,43532.0,0.374808]
[1644579987305,0.001,43533.0,43532.0,0.474808]
[1644579987706,0.001,43533.0,43532.0,0.76226121]
[1644579988304,0.001,43533.0,43532.0,0.474808]
[1644579988705,0.001,43533.0,43532.0,0.75932977]
[1644579989147,0.001,43533.0,43532.0,0.474808]
[1644579989747,0.001,43533.0,43532.0,0.76607097]
[1644579990149,0.001,43533.0,43532.0,0.474808]
[1644579990452,0.001,43533.0,43532.0,0.374808]
[1644579992248,0.001,43533.0,43532.0,0.323308]
[1644579992906,0.00072331,43533.0,43532.0,0.323308]
[1644579994106,0.05746,43531.0,43525.0,0.07419213]
[1644579995005,0.05746,43531.0,43525.0,0.46645209]
[1644579995606,0.05817504,43531.0,43525.0,0.46645209]
[1644579996448,0.05746,43531.0,43525.0,0.46645209]
[1644579996648,0.05817504,43531.0,43525.0,0.46645209]
[1644579997249,0.05817504,43531.0,43526.0,0.380767]
[1644579997250,0.00071504,43531.0,43526.0,0.380767]
[1644579997649,0.00072331,43533.0,43526.0,0.380767]
[1644579997849,0.00098334,43533.0,43526.0,0.380767]
[1644579998051,0.00071504,43531.0,43526.0,0.380767]
[1644579998849,0.05771903,43532.0,43526.0,0.380767]
[1644579999050,0.05817204,43531.0,43526.0,0.380767]
[1644579999251,0.05817204,43531.0,43526.0,0.480767]
[1644579999949,0.057457,43531.0,43526.0,0.480767]
[1644580000407,0.05817204,43531.0,43526.0,0.380767]
[1644580001207,0.057457,43531.0,43526.0,0.380767]
[1644580001409,0.11563004,43531.0,43526.0,0.380767]
[1644580002509,0.057458,43530.0,43526.0,0.380767]
[1644580002708,0.05771803,43530.0,43526.0,0.380767]
[1644580002908,0.00026003,43530.0,43526.0,0.380767]
[1644580003109,0.00071504,43531.0,43526.0,0.480767]
[1644580003312,0.00026003,43530.0,43526.0,0.480767]
[1644580003509,0.00097507,43531.0,43526.0,0.380767]
[1644580003712,0.00026003,43530.0,43526.0,0.380767]
[1644580003950,0.00071504,43531.0,43526.0,0.380767]
[1644580004453,0.05843207,43531.0,43526.0,0.380767]
[1644580004651,0.057458,43530.0,43526.0,0.380767]
[1644580004853,0.05771803,43530.0,43526.0,0.380767]
[1644580005752,0.057458,43529.0,43526.0,0.380767]
[1644580005957,0.11517703,43529.0,43526.0,0.380767]
[1644580006153,0.114917,43529.0,43526.0,0.380767]
[1644580007797,0.11517703,43529.0,43526.0,0.380767]
[1644580007999,0.114917,43529.0,43526.0,0.380767]
[1644580008796,0.11517703,43529.0,43526.0,0.380767]
[1644580008997,0.114917,43529.0,43526.0,0.380767]
[1644580011848,0.114917,43529.0,43526.0,0.323308]
[1644580013453,0.17237777,43529.0,43526.0,0.323308]
[1644580015909,0.057461,43528.0,43526.0,0.323308]
[1644580016908,0.057461,43528.0,43526.0,0.3232367]
[1644580017507,0.114922,43528.0,43526.0,0.3232367]
[1644580018409,0.114922,43528.0,43526.0,0.3806967]
[1644580021360,0.17309553,43531.0,43529.0,0.40858768]
[1644580021554,0.17309553,43531.0,43530.0,0.323308]
[1644580021756,0.1723805,43531.0,43530.0,0.323308]
[1644580022055,0.05817353,43531.0,43530.0,0.323308]
[1644580022254,2.65358429,43534.0,43532.0,0.823072]
[1644580022457,2.65358429,43534.0,43533.0,0.32659924]
[1644580022706,0.34556134,43535.0,43533.0,0.32659924]
[1644580022707,0.002,43535.0,43533.0,0.32659924]
[1644580022902,0.002,43535.0,43533.0,0.74967124]
[1644580023104,0.002,43535.0,43534.0,0.30046777]
[1644580023503,0.002,43535.0,43534.0,0.62353977]
[1644580024704,0.002,43535.0,43534.0,0.323072]
[1644580024903,0.002,43535.0,43533.0,0.423072]
[1644580025104,0.002,43535.0,43533.0,0.374572]
[1644580025306,0.002,43535.0,43533.0,0.474572]
[1644580030505,0.001,43538.0,43534.0,0.9]
[1644580030706,0.003,43542.0,43537.0,1.223072]
[1644580031005,0.003,43542.0,43537.0,1.380509]
[1644580031603,0.003,43542.0,43538.0,0.38445317]
[1644580031803,0.003,43542.0,43540.0,0.28741424]
[1644580032006,0.003,43542.0,43540.0,0.71941824]
[1644580032404,0.102,43543.0,43540.0,0.81941824]